Cogmind - Beta 14 @@@ ROGUE MODE // 2025.03.05 @ 11:24:21 Player: Willow Result: Destroyed by S-10 Pest with Light Assault Rifle Performance ------------- Evolutions (0) 0 Regions Visited (1) 200 Robots Destroyed (14) 70 Value Destroyed (188) 188 Prototype IDs (0) 0 Alien Tech Used (0) 0 Bonus (0) 0 TOTAL SCORE: 458 Bonus ------- None Cogmind --------- Core Integrity 0/250 Matter 300/300 Energy 52/100 System Corruption 0% Temperature Warm (129) Movement Core (50) Location -10/Materials Parts ------- > --- POWER (1) -------- (None) > --- PROPULSION (2) --- (None) > --- UTILITY (2) ------ (None) > --- WEAPON (2) ------- (None) > --- INVENTORY (5) ---- Small Storage Unit Peak State ------------ > --- POWER ------------ Ion Engine > --- PROPULSION ------- Light Treads Light Treads > --- UTILITY ---------- Small Storage Unit Seismic Detector > --- WEAPON ----------- Medium Laser Medium Laser > --- INVENTORY -------- Ion Engine [Rating: 7] Favorites ----------- Power Ion Engine Engine Ion Engine Propulsion Light Treads Treads Light Treads Utility Small Storage Unit Device Seismic Detector Storage Small Storage Unit Weapon Medium Laser Energy Gun Medium Laser Build | -11 -10 ------- Run | Yrd Mat Slots Evolved . | . . Power . | . . Propulsion . | . . Utility . | . . Weapon . | . . Parts Attached 9 | 7 2 Power 2 | 1 1 Engine 2 | 1 1 Core . | . . Reactor . | . . Propulsion 2 | 2 . Treads 2 | 2 . Leg . | . . Wheel . | . . Hover . | . . Flight . | . . Utility 3 | 2 1 Device 1 | 1 . Storage 2 | 1 1 Processor . | . . Hackware . | . . Protection . | . . Artifact . | . . Weapon 2 | 2 . Energy Gun 2 | 2 . Energy Cannon . | . . Ballistic Gun . | . . Ballistic Cannon . | . . Launcher . | . . Special Weapon . | . . Impact Weapon . | . . Slashing Weapon . | . . Piercing Weapon . | . . Special Melee Weapon . | . . Unidentified Prototypes . | . . Parts Lost 6 | . 6 Power 2 | . 2 Propulsion 2 | . 2 Utility . | . . Weapon 2 | . 2 Highest Loss Streak 6 | . 6 To Critical Strikes . | . . Average Slot Usage (%) 90 | . 90 Engine 12 | . 12 Treads 24 | . 24 Device 14 | . 14 Storage 14 | . 14 Energy Gun 24 | . 24 Peak Build Rating 7 | 7 7 Average Rating 5 | 5 6 On Entrance 3 | . 7 Naked Turns . | . . Heaviest Build 30 | 15 30 Greatest Support 40 | 40 40 Greatest Overweight (x) . | . . Average Overweight (x) . | . . Largest Inventory Capacity 15 | 8 15 Average Capacity 9 | 7 12 Most Carried 2 | 1 2 Average Carried 1 | . 1 Final Capacity 8 | 8 5 Final Carried 1 | 1 1 Class Distribution -------------------- 100% | Mutant Dominant Class ---------------- Mutant | -10/Materials Resources | -11 -10 ----------- Run | Yrd Mat Matter Collected 270 | 270 . Remotely . | . . Salvage Created 380 | 206 174 Parts 24 | 14 10 Haulers Intercepted . | . . Recyclers Shooed . | . . Parts Field Recycled . | . . Retrieved Matter . | . . Parts Self-Destructed . | . . Prevented . | . . Kills | -11 -10 ------- Run | Yrd Mat Combat Hostiles Destroyed 4 | . 4 Guns 4 | . 4 Classes Destroyed 6 | 3 3 Worker 2 | 2 . Tunneler 6 | 6 . Recycler 1 | 1 . Mechanic 1 | . 1 Swarmer 1 | . 1 Grunt 3 | . 3 Best Kill Streak 4 | 4 4 Combat Bots Only 3 | . 3 Max Kills in Single Turn 1 | 1 1 Gunslinging . | . . Exploded . | . . Melee . | . . Uniques/NPCs Destroyed . | . . Combat | -11 -10 -------- Run | Yrd Mat Hostile Shots Fired 109 | . 109 Missed 21 | . 21 Damage Taken 871 | . 871 Core 251 | . 251 Absorbed by Shields . | . . Core Remaining (%) 100 | 100 . Volleys Fired 49 | 27 22 Largest 2 | 2 2 Hottest 100 | 100 100 Shots Fired 83 | 54 29 Gun 83 | 54 29 Cannon . | . . Launcher . | . . Special . | . . Kinetic . | . . Thermal 83 | 54 29 Explosive . | . . Electromagnetic . | . . Robot Hit Streak 6 | 6 5 Robot Miss Streak 4 | 2 4 Penetration Max . | . . Secondary Targets . | . . Shots Hit Robots 45 | 26 19 Core Hits 20 | 10 10 Critical Kills . | . . Critical Parts Destroyed . | . . Critical Strikes 6 | 3 3 Burn 6 | 3 3 Melee Attacks . | . . Impact . | . . Slashing . | . . Piercing . | . . Sneak Attacks . | . . Combat Hostiles . | . . Follow-up Attacks . | . . Damage Inflicted 619 | 328 291 Guns 619 | 328 291 Cannons . | . . Explosions . | . . Melee . | . . Ramming . | . . Kinetic . | . . Thermal 619 | 328 291 Explosive . | . . Electromagnetic . | . . Impact . | . . Slashing . | . . Piercing . | . . Highest Corruption . | . . Average Corruption . | . . Corruption Purged . | . . Corruption Blocked . | . . Overload Shots . | . . Overflow Damage . | . . Projectiles . | . . Explosions . | . . Melee . | . . Knockbacks . | . . Impact . | . . Kinetic . | . . Secondary . | . . Self-Inflicted Damage . | . . Shots . | . . Rammed . | . . Targets Rammed . | . . Kicked . | . . Crushed . | . . Highest Temperature 409 | 409 171 Average Temperature 115 | 127 93 Received Heat Transfer 297 | . 297 Effects 1 | 1 . Shutdowns 1 | 1 . Siege Activations . | . . Robots Corrupted . | . . Combat Hostiles . | . . Parts Fried . | . . Impact Corruptions . | . . Robots Melted . | . . Combat Hostiles . | . . Parts Melted 5 | 3 2 Heat Transferred 2257 | 1184 1073 Parts Sabotaged . | . . Parts Stolen . | . . Parts Stripped . | . . Power Chain Reactions . | . . Alert | -11 -10 ------- Run | Yrd Mat Peak Influence 74 | 45 74 Initial 29 | . 29 Average 27 | 19 47 Maximum Alert Level . | . . Low Security (%) 100 | 100 100 Level 1 . | . . Level 2 . | . . Level 3 . | . . Level 4 . | . . Level 5 . | . . High Security . | . . Max Security . | . . Squads Dispatched . | . . Investigation . | . . Extermination . | . . Reinforcement . | . . Assault . | . . Garrison . | . . Intercept . | . . Searches Triggered . | . . Construction Impeded . | . . Haulers Reinforced . | . . Active Scanning Responses . | . . Cargo Convoy Interrupts . | . . Stealth | -11 -10 --------- Run | Yrd Mat Distress Signals 2 | . 2 Communications Jammed . | . . Distress Signals . | . . Times Spotted 10 | . 10 Peak Tracking Total 9 | . 9 Tactical Retreats . | . . Traps | -11 -10 ------- Run | Yrd Mat Traps Triggered . | . . Indirectly . | . . Trap Hack Attempts . | . . Triggered . | . . Disarmed . | . . Reprogrammed . | . . Reused . | . . Traps Extracted . | . . Installed . | . . Triggered . | . . Machines | -11 -10 ---------- Run | Yrd Mat Machines Disabled . | . . Max in Single Turn . | . . Machines Repaired . | . . Machines Dismantled . | . . Machines Sabotaged . | . . Overloaded Fab Kills . | . . Hacking | -11 -10 --------- Run | Yrd Mat Machines Accessed . | . . Terminals . | . . Fabricators . | . . Repair Stations . | . . Recycling Units . | . . Scanalyzers . | . . Garrison Access . | . . Total Hacks . | . . Successful . | . . Failed . | . . Catastrophic . | . . Database Lockouts . | . . Manual . | . . Terminals . | . . Fabricators . | . . Repair Stations . | . . Recycling Units . | . . Scanalyzers . | . . Garrison Access . | . . Terminal Hacks . | . . Fabricator Hacks . | . . Repair Station Hacks . | . . Recycling Unit Hacks . | . . Scanalyzer . | . . Garrison Access Hacks . | . . Unauthorized Hacks . | . . Terminals . | . . Fabricators . | . . Repair Stations . | . . Recycling Units . | . . Scanalyzers . | . . Garrison Access . | . . Data Cores Recovered . | . . Used . | . . Hacking Detections . | . . Full Trace Events . | . . Feedback Events . | . . Feedback Blocked . | . . Robot Schematics Acquired . | . . Robots Built . | . . Authchips . | . . Time . | . . Total Robot Build Rating . | . . Part Schematics Acquired . | . . Parts Built . | . . Authchips . | . . Time . | . . Total Part Build Rating . | . . Parts Repaired . | . . Time . | . . Parts Recycled . | . . Recycled Matter . | . . Retrieved Matter . | . . Retrieved Components . | . . Parts Scanalyzed . | . . Part Schematics Acquired . | . . Parts Damaged . | . . Bothacking | -11 -10 ------------ Run | Yrd Mat Used RIF Installer . | . . Robots Hacked . | . . Non-combat . | . . Combat . | . . Robot Hacks Applied . | . . Relay Couplers Released . | . . Fabnet Peak Effective % . | . . Robots Rewired . | . . Allies Hacked . | . . Hacks Repelled . | . . Allies | -11 -10 -------- Run | Yrd Mat Total Allies . | . . Largest Group . | . . Highest-Rated Group . | . . Highest-Rated Ally . | . . Total Orders . | . . Ally Attacks . | . . Total Damage . | . . Kills . | . . Allies Corrupted . | . . Allies Melted . | . . Intel | -11 -10 ------- Run | Yrd Mat Robot Analysis Total . | . . Derelict Logs Recovered . | . . Drone Launches . | . . Drone Recoveries . | . . Exploration | -11 -10 ------------- Run | Yrd Mat Turns Passed 397 | 286 111 Spaces Moved 144 | 113 31 Core 3 | 2 1 Treads 141 | 111 30 Legs . | . . Wheels . | . . Hover . | . . Flight . | . . Fastest Speed 50 | 50 50 Average Speed 157 | 158 156 Slowest Speed 160 | 160 160 Overloaded Moves . | . . Propulsion Burnouts . | . . Robots Hopped . | . . Cave-ins Triggered . | . . Exploration Rate (%) 9 | 9 9 Regions Visited 1 Branch Regions . Pre-discovered Areas . | . . Known Exits Taken . | . . Unknown Exits Taken 1 | 1 . Scrap Searched . | . . Spaces Dug . | . . Terrain Destroyed . | . . Melee . | . . Projectile . | . . AOE . | . . Terrain Rammed . | . . Walls Destroyed . | . . Machines Disabled . | . . Actions | -11 -10 --------- Run | Yrd Mat Total 228 | 163 65 Wait 24 | 16 8 Move 143 | 112 31 Hop . | . . Pick Up 1 | 1 . Fast Attach 7 | 7 . Attach 1 | . 1 Detach . | . . Swap 1 | . 1 Drop 2 | . 2 Fire 49 | 27 22 Melee . | . . Ram . | . . Kick . | . . Crush . | . . Escape Stasis . | . . Rewire . | . . Trap . | . . Miscellaneous . | . . Route ------- -11/Scrapyard -10/Materials History --------- Turn | Location | Event 25 | -11/Scrapyard | Discovered new exit (range 15) 287 | -11/Scrapyard | Entered Materials 308 | -10/Materials | Build established: Mutant 379 | -10/Materials | Core integrity fell below 50% 392 | -10/Materials | Core integrity fell below 20% 398 | -10/Materials | Destroyed by S-10 Pest with Light Assault Rifle Last Messages --------------- 00364_ Med. Laser destroyed. 00367_ K-01 Serf collects debris. 00368_ G-34 Mercenary destroyed. 00372_ K-01 Serf collects debris. 00376_ Ion Engine destroyed. 00376_ Lgt. Treads destroyed. 00377_ M-13 Machinist destroyed. 00378_ K-01 Serf collects debris. 00380_ Lgt. Treads destroyed. 00381_ K-01 Serf collects debris. 00383_ Ion Engine melted. 00383_ G-34 Mercenary destroyed. 00387_ K-01 Serf collects debris. 00388_ Ion Engine destroyed. 00393_ S-10 Pest suffers critical hit (Burn). 00393_ S-10 Pest destroyed. 00396_ R-06 Scavenger collects Flight Unit. 00396_ Med. Laser destroyed. 00397_ Dropped Lrg. Storage Unit. 00398_ Dropped Seismic Detector. Map ----- +----------------------------------------------------+ | ?????????????????????????????????????????????????? | | ?????????????????????????????????????????????????? | | ?????????????????????????????????????????????????? | | ?????????????????????????????????????????????????? | | ?????????????????????????????????????????????????? | | ?????????????????????????????????????????????????? | | ?????????????????????????????????????????????????? | | ?????????????????????????????????????????????????? | | ?????????????????????????????????????????????????? | | ???????????????????????? ??????????????????????? | | ???????????????????????? ??????????????????????? | | ??????????????????????## ##????????????????????? | | ??????????##?????###### #????????????????????? | | ?????????? ???? s #????????????????????? | | ?????????? ??? ? as #????????????????????? | | ??????????? #????????????????????? | | ??????????""" """ """ #????????????????????? | | ??????????""" """ """ #????????????????????? | | ???????????"" """ """ r #????????????????????? | | ???????????? #????????????????????? | | ????????????? % #????????????????????? | | ??????????????# #????????????????????? | | ??????????????# ! #????????????????????? | | ??????????????# """!! ########?????????????? | | ??????????????# ! """*%=## ########??????? | | ??????????????# !] """@!= #??????? | | ??????????????# =[ #??????? | | ??????????????# g #??????? | | ??????????????# ############ ########??????? | | ??????????????# ???????????#######?????????????? | | ??????????????# ???????????????????????????????? | | ??????????????#* ???????????????????????????????? | | ??????????????#%= ???????????????????????????????? | | ??????????????# ???????????????????????????????? | | ?????????????? ???????????????????????????????? | | ?????????????? ???????????????????????????????? | | ????????????? ????????????????????????????????? | | ?????????????####????????????????????????????????? | | ?????????????????????????????????????????????????? | | ?????????????????????????????????????????????????? | | ?????????????????????????????????????????????????? | | ?????????????????????????????????????????????????? | | ?????????????????????????????????????????????????? | | ?????????????????????????????????????????????????? | | ?????????????????????????????????????????????????? | | ?????????????????????????????????????????????????? | | ?????????????????????????????????????????????????? | | ?????????????????????????????????????????????????? | | ?????????????????????????????????????????????????? | | ?????????????????????????????????????????????????? | +----------------------------------------------------+ Best States ------------- Heat Dissipation 25 Energy Generation 10 Energy Capacity 250 Matter Stores 300 Matter Capacity 300 Sight Range 16 Terrain Scan Density 10 Evasion (%) 40 Recoil Reduction 2 Item Schematics ----------------- None Robot Schematics ------------------ None Fabricated ------------ Nothing Alien Tech Used ----------------- None Achievements -------------- None Challenges ------------ None Game ------ Seed TargetingPlatingAirjet Manual? 0 Play Time 00:04:58 Cumulative 207.5 hours Start 2025.03.05 @ 11:20:29 End 2025.03.05 @ 11:24:21 Sessions 1 Manual Loads 0 Difficulty Rogue Special Mode None Game No. 101 Rogue 62 Adventurer 36 Explorer 3 Win Type - Total 6 Types 2/1/0/1/0/1/0/1/0 Lore% 67 Gallery% 66 Achievement% 64 Wizard Run 0 Options --------- Layout 1 ASCII 0 Keyboard 0 Movement Arrows Keybinds 0 Fullscreen 1 Font 24/Smallcaps Map View 50x35 Zoom Use 0% Tactical HUD 1 Map Filters NONE Filters NONE Steam 1 RUN: 72a73f9b-5b20-4e8b-a3f0-2d6cfa0745ab